bitfinex/quotes_ETHUSD_20240711
["timestamp","ask_amount","ask_price","bid_price","bid_amount"]
[1720691480593,1.66222885,3140.8,3139.9,2.8537]
[1720691480801,2.37396916,3140.7,3139.9,2.8537]
[1720691481100,0.71174031,3140.6,3139.9,2.8537]
[1720691481409,0.71193949,3140.5,3139.9,2.8537]
[1720691481603,0.71193949,3140.4,3139.9,2.8537]
[1720691481921,1.66229524,3140.9,3140.0,0.06369063]
[1720691482132,0.71189375,3140.8,3139.9,2.8537]
[1720691482312,0.71186557,3140.7,3139.9,2.8537]
[1720691482492,1.97,3141.9,3139.9,2.8537]
[1720691482693,1.66309292,3140.9,3139.9,2.8537]
[1720691482906,0.7118796,3140.8,3139.9,2.8537]
[1720691483110,0.23749725,3140.7,3139.9,2.8537]
[1720691483326,0.7118796,3140.6,3139.9,2.8537]
[1720691483526,0.7118796,3140.6,3139.9,0.6]
[1720691483739,1.66309292,3140.4,3139.9,0.6]
[1720691484024,0.7118796,3140.3,3139.9,0.6]
[1720691484329,0.94937685,3140.3,3139.9,0.6]
[1720691484630,0.7118796,3140.2,3139.9,0.6]
[1720691485025,0.71198304,3140.1,3139.9,0.6]
[1720691485231,1.66523328,3140.5,3139.9,0.6]
[1720691485445,1.97,3141.9,3140.0,0.06368914]
[1720691485602,1.665712,3140.7,3139.9,0.6]
[1720691485802,0.7118614,3140.6,3140.0,1.97]
[1720691486118,0.7118614,3140.5,3140.2,2.365]
[1720691486319,1.665712,3140.9,3140.2,2.365]
[1720691486497,2.37755416,3140.8,3140.2,2.365]
[1720691486698,0.71184216,3140.7,3140.2,2.365]
[1720691487236,0.71184216,3140.6,3140.2,2.365]
[1720691487399,0.71184216,3140.5,3140.3,0.2622]
[1720691487733,0.71184216,3140.4,3140.3,0.2622]
[1720691487911,2.37755416,3140.8,3140.3,0.2622]
[1720691488120,0.71184216,3140.7,3140.3,0.2622]
[1720691488627,0.71184216,3140.6,3140.3,0.2622]
[1720691488833,2.3528,3141.7,3140.3,0.2622]
[1720691489004,1.66502491,3140.8,3140.2,2.365]
[1720691489200,0.71186514,3140.7,3140.2,2.365]
[1720691489615,0.71186514,3140.6,3140.2,2.365]
[1720691489812,0.71186514,3140.5,3140.2,2.365]
[1720691490037,1.66502491,3140.9,3140.3,0.2622]
[1720691490234,0.71184176,3140.8,3140.3,0.2622]
[1720691490415,0.71184176,3140.7,3140.3,0.2622]
[1720691490733,0.71184176,3140.6,3140.4,0.06368088]
[1720691490925,1.66502491,3141.1,3140.3,0.2622]
[1720691491128,0.71177549,3141.0,3140.4,0.26272]
[1720691492196,0.71179528,3140.9,3140.4,0.26272]
[1720691492435,0.71179528,3140.8,3140.4,0.26272]
[1720691492638,0.71179528,3140.7,3140.4,0.26272]
[1720691492800,1.66391298,3141.1,3140.4,0.26272]
[1720691493002,0.71179823,3141.0,3140.4,0.26272]
[1720691493725,0.69067488,3141.0,3140.4,0.26272]
[1720691494019,1.66391298,3141.2,3140.4,0.26272]
[1720691494265,1.66391298,3141.2,3140.5,0.06367677]
[1720691494443,1.66391298,3141.3,3140.5,0.06367677]
[1720691496047,1.66391298,3141.5,3140.4,0.26272]
[1720691496242,1.66391298,3141.8,3140.7,2.414]
[1720691496540,1.66391298,3141.9,3140.7,2.414]
[1720691496836,1.66391298,3141.8,3140.7,2.414]
[1720691497049,1.66391298,3141.6,3140.7,2.414]
[1720691497499,1.66391298,3141.5,3140.4,2.29639248]
[1720691497708,1.66391298,3141.7,3140.4,2.29639248]
[1720691498326,1.66391298,3141.8,3140.4,2.29639248]
[1720691498524,1.66391298,3141.8,3140.5,0.47716925]
[1720691498742,1.66391298,3142.1,3140.7,2.4888]
[1720691499051,1.66113204,3142.1,3140.8,0.0636631]
[1720691499542,1.66113204,3142.1,3140.7,2.4888]
[1720691499709,1.66113204,3142.1,3140.8,0.25524631]
[1720691500419,1.66113204,3142.6,3141.2,1.97]
[1720691500736,1.66113204,3142.7,3141.3,2.3537]
[1720691500949,4.64918485,3143.3,3141.3,2.3537]
[1720691500950,1.66113204,3142.6,3141.3,2.3537]
[1720691501098,1.66113204,3142.6,3141.4,0.43237]
[1720691501837,1.66113204,3142.7,3141.5,0.06365079]
[1720691502040,1.66113204,3142.8,3141.5,0.06365079]
[1720691502243,2.3236,3143.3,3141.5,0.06365079]
[1720691502446,2.3236,3143.3,3141.5,2.3237]
[1720691502447,1.65973863,3143.0,3141.5,2.3237]
[1720691502748,1.65973863,3143.4,3142.0,1.97]
[1720691502905,1.97,3144.1,3142.1,0.06363794]
[1720691502906,1.65973863,3143.5,3142.1,0.06363794]
[1720691503259,1.65973863,3143.7,3142.1,0.06363794]
[1720691503538,1.65973863,3143.6,3142.0,1.97]
[1720691504307,1.65973863,3143.8,3142.0,1.97]
[1720691504509,1.82571249,3143.7,3142.0,2.17336377]
[1720691504730,0.16597386,3143.7,3142.0,2.17336377]
[1720691504939,1.82571249,3143.7,3142.0,2.17336377]
[1720691505331,0.16597386,3143.7,3142.1,2.2825]
[1720691505514,0.18257125,3143.6,3142.2,0.44558638]
[1720691505716,1.65775751,3143.9,3142.2,0.44558638]
[1720691506220,1.65775751,3144.0,3142.3,0.06363642]
[1720691506621,2.4418,3144.2,3142.4,2.41083628]
[1720691506622,1.65775751,3144.2,3142.4,2.41083628]
[1720691506807,2.3102,3144.7,3142.8,1.97]
[1720691506808,1.65775751,3144.6,3142.8,1.97]
[1720691507017,2.3102,3144.7,3142.8,1.97]
[1720691507018,2.05455326,3144.5,3142.8,1.97]
[1720691507340,2.05455326,3144.5,3142.4,11.2547]
[1720691508452,0.39679575,3144.5,3142.4,11.2547]
[1720691508911,2.05174922,3144.5,3142.4,11.2547]
[1720691509107,0.39679575,3144.5,3142.4,11.2547]
[1720691509334,0.20517492,3144.4,3142.4,12.42472864]
[1720691509547,0.39679575,3144.5,3142.4,12.42472864]
[1720691509742,1.97,3144.4,3142.4,11.2547]
[1720691510041,2.388,3144.3,3142.4,2.3472]
[1720691510630,0.39679575,3144.5,3142.4,4.3172]
[1720691510833,1.65495347,3144.7,3142.5,0.43172]
[1720691511241,6.01295347,3144.8,3142.5,0.43172]
[1720691511650,4.358,3144.8,3142.5,0.43172]
[1720691512612,4.358,3144.8,3142.6,2.4117]
[1720691513735,0.69447716,3144.7,3142.6,2.4117]
[1720691513926,0.50524772,3144.6,3144.5,0.2]
[1720691514121,1.19972488,3144.6,3144.5,0.2]
[1720691515235,1.97,3145.2,3144.5,0.2]
[1720691515637,0.69437485,3145.1,3144.5,0.2]
[1720691518132,1.97,3144.8,3144.5,0.2]
[1720691518338,0.69437485,3144.7,3144.5,0.4]
[1720691518860,1.97,3144.8,3144.5,0.4]
[1720691519041,0.197,3144.7,3144.5,0.4]
[1720691519278,0.89139349,3144.7,3144.5,0.4]
[1720691519444,0.69439349,3144.6,3144.5,0.4]
[1720691521435,0.197,3144.7,3144.5,0.4]
[1720691521959,0.69443707,3144.6,3144.5,0.4]
[1720691522166,0.98058078,3144.6,3144.5,0.4]
[1720691522352,0.28614371,3144.6,3144.5,0.4]
[1720691522725,0.28614371,3144.6,3144.5,0.6]
[1720691523364,1.97,3144.8,3144.5,0.6]
[1720691526863,1.97,3144.8,3144.5,0.8]
[1720691527235,2.388,3145.3,3144.5,0.8]
[1720691527433,2.66435622,3145.2,3144.5,0.8]
[1720691527650,0.69435622,3145.1,3144.5,0.8]
[1720691527969,0.26643562,3145.0,3144.5,0.8]
[1720691528835,1.97,3145.4,3144.5,0.8]
[1720691529066,0.69424331,3145.3,3144.5,0.8]
[1720691530929,0.69424331,3145.3,3144.5,1.0]
[1720691531639,1.97,3145.4,3144.5,1.0]
[1720691532775,1.97,3145.8,3144.5,1.0]
[1720691532933,0.89110148,3145.7,3144.5,1.0]
[1720691533146,0.69410148,3145.6,3144.5,1.0]
[1720691534772,1.97,3145.3,3144.5,1.0]
[1720691534957,0.6942225,3145.2,3144.5,1.0]
[1720691535550,7.44,3146.4,3144.6,2.3696]
[1720691535744,1.63493528,3146.3,3144.7,0.33696]
[1720691535950,0.69393528,3146.2,3144.7,0.33696]
[1720691536249,2.66393528,3146.1,3144.6,2.3696]
[1720691536472,1.97,3145.6,3144.5,1.0]
[1720691536685,1.5,3146.1,3144.5,1.0]
[1720691536686,1.97,3145.2,3144.5,1.0]
[1720691536888,0.69393528,3145.1,3144.5,1.0]
[1720691538064,2.2948,3146.7,3144.6,2.3273]
[1720691538267,2.2948,3146.7,3144.7,0.52973]
[1720691538268,4.49870324,3146.7,3144.7,0.52973]
[1720691538589,2.2948,3146.7,3144.7,0.52973]
[1720691539396,1.97,3146.4,3144.7,0.52973]
[1720691541566,1.97,3146.0,3144.7,0.52973]
[1720691541761,0.197,3145.9,3144.7,0.52973]
[1720691544963,0.197,3145.9,3144.6,2.3273]
[1720691545167,1.6588503,3145.7,3144.6,2.3273]
[1720691546257,1.6588503,3145.6,3144.6,2.3273]
[1720691546808,1.6588503,3145.5,3144.6,2.3273]
[1720691547149,1.6588503,3145.4,3144.6,2.3273]
[1720691547355,1.82473533,3145.4,3144.5,1.0]
[1720691547599,1.6588503,3145.0,3144.5,1.0]
[1720691547762,1.6588503,3144.9,3144.5,1.0]
[1720691548356,1.66202628,3144.9,3144.5,1.0]
[1720691548556,1.66202628,3144.8,3144.5,1.0]
[1720691549604,1.66202628,3144.7,3144.5,1.0]
[1720691549993,1.66202628,3144.6,3144.5,1.0]
[1720691550375,2.16063417,3144.7,3144.5,1.0]
[1720691551406,1.99443154,3144.6,3144.5,1.0]
[1720691551583,2.1630002,3144.7,3144.5,1.0]
[1720691552196,1.99679757,3144.6,3144.5,1.0]
[1720691552399,2.21309759,3144.6,3144.5,1.0]
[1720691553124,0.21630002,3144.6,3144.5,1.0]
[1720691554612,2.96813667,3144.6,3144.5,1.0]
[1720691555033,2.96981064,3144.6,3144.5,1.0]
[1720691555619,8.50194164,3144.6,3144.5,1.0]
[1720691555781,2.96981064,3144.6,3144.5,1.0]
[1720691555980,6.28023964,3144.6,3144.5,1.0]
[1720691556402,2.96981064,3144.6,3144.5,1.0]
[1720691557909,3.12479961,3144.6,3144.5,1.0]
[1720691558218,2.96981064,3144.6,3144.5,1.0]
[1720691558523,3.12480046,3144.6,3144.5,1.0]
[1720691558923,6.42970832,3144.6,3144.5,1.0]
[1720691559085,3.12480046,3144.6,3144.5,1.0]
[1720691560185,6.42970832,3144.6,3144.5,1.0]
[1720691560602,3.12480046,3144.6,3144.5,1.0]
[1720691560917,6.42961425,3144.6,3144.5,1.0]
[1720691561102,6.42961425,3144.6,3143.1,2.4008]
[1720691561426,1.66521694,3143.3,3143.1,3.33463]
[1720691561635,0.15497784,3143.2,3143.1,2.4008]
[1720691561919,1.82027171,3143.2,3143.1,2.4008]
[1720691562293,0.15497649,3143.2,3143.1,2.4008]
[1720691562894,1.82027171,3143.2,3143.1,2.4008]
[1720691563103,0.15497649,3143.2,3143.1,2.64088]
[1720691565160,0.15489404,3143.2,3143.1,2.64088]
[1720691565446,0.15489404,3143.3,3143.1,2.64088]
[1720691566649,0.15489404,3143.2,3143.1,2.64088]
[1720691567148,0.15489404,3143.4,3143.1,2.64088]
[1720691567350,0.15484057,3143.3,3143.2,0.264088]
[1720691567551,1.66474362,3143.7,3143.2,2.4939]
[1720691567852,1.66474362,3144.1,3143.4,2.4939]
[1720691568057,10.19351062,3144.6,3143.5,0.06361449]
[1720691568058,0.15466371,3144.0,3143.5,0.06361449]
[1720691568216,1.66474362,3144.2,3143.5,0.06361449]
[1720691568217,0.15466371,3143.9,3143.5,0.06361449]
[1720691568556,1.66423695,3144.3,3143.6,2.4939]
[1720691568717,1.81885392,3144.2,3143.7,0.31936054]
[1720691568912,0.15461697,3144.1,3143.7,0.25575145]
[1720691571548,1.81885392,3144.1,3143.7,0.25575145]
[1720691571753,2.75351062,3144.6,3143.7,0.25575145]
[1720691571914,1.66429849,3144.1,3143.7,0.25575145]
[1720691572111,0.15467777,3144.0,3143.8,0.27496515]
[1720691573430,0.15467777,3143.9,3143.8,0.27496515]
[1720691573847,0.15467777,3144.0,3143.8,0.27496515]
[1720691574024,0.15467777,3143.9,3143.8,0.27496515]
[1720691574633,0.15467777,3144.0,3143.8,0.27496515]
[1720691575129,2.75233298,3145.0,3143.8,0.27496515]
[1720691575333,1.66405263,3144.2,3143.8,0.27496515]
[1720691575551,0.15466322,3144.1,3143.8,0.27496515]
[1720691576353,0.15466322,3144.1,3143.8,0.33857316]
[1720691576733,1.66405263,3144.4,3143.8,0.33857316]
[1720691576918,0.15456496,3144.3,3143.8,0.33857316]
[1720691577120,0.15456496,3144.3,3143.9,2.2518]
[1720691577323,0.15456496,3144.2,3144.0,0.25903732]
[1720691577543,1.66405263,3144.6,3144.0,0.25903732]
[1720691577871,0.15450179,3144.5,3144.0,0.25903732]
[1720691578220,1.81855442,3144.5,3144.0,0.32263778]
[1720691578421,0.15450179,3144.4,3144.0,0.32263778]
[1720691578621,1.66405263,3144.6,3143.5,1.97]
[1720691578622,0.1545026,3144.3,3144.2,2.2518]
[1720691578845,2.75233298,3145.0,3144.2,2.2518]
[1720691578846,1.66393036,3144.7,3144.2,2.2518]
[1720691579050,0.1544495,3144.6,3144.2,2.2518]
[1720691580869,1.81837986,3144.6,3144.2,2.2518]
[1720691581178,0.1544495,3144.5,3144.2,2.2518]
[1720691581325,0.15450232,3144.4,3144.2,2.2518]
[1720691581527,0.15450232,3144.3,3144.2,2.2518]
[1720691582623,0.15450232,3144.4,3144.2,2.2518]
[1720691582828,0.15450232,3144.3,3144.2,2.2518]
[1720691583124,0.15450232,3144.4,3144.2,2.2518]
[1720691583348,1.66374122,3144.5,3144.2,2.2518]
[1720691583349,0.15450232,3144.3,3144.2,2.2518]
[1720691583663,0.15450232,3144.3,3144.2,2.47698]
[1720691583822,1.81824354,3144.5,3144.2,2.47698]
[1720691584022,0.15450232,3144.4,3144.2,2.2518]
[1720691584272,1.81824354,3144.3,3143.8,2.3508]
[1720691584422,0.15450232,3144.2,3143.8,2.3508]
[1720691584630,0.15461684,3144.1,3143.8,2.3508]
[1720691584936,1.66462185,3144.5,3143.8,2.3508]
[1720691585153,0.15455591,3144.4,3143.9,0.92883]
[1720691586072,1.81917776,3144.4,3143.9,0.92883]
[1720691586362,1.81917776,3144.3,3143.9,0.92883]
[1720691586576,0.15455591,3144.2,3143.9,0.92883]
[1720691587371,0.15455591,3144.1,3143.9,0.92883]
[1720691587574,1.66462185,3144.3,3143.9,0.92883]
[1720691587575,0.15455591,3144.0,3143.9,0.92883]
[1720691587935,2.75233298,3145.0,3143.9,0.92883]
[1720691588273,1.66561851,3144.2,3143.9,0.92883]
[1720691588563,0.15454719,3144.1,3143.8,2.3508]
[1720691588731,0.15454719,3144.0,3143.8,2.3508]
[1720691588930,0.15454719,3143.9,3143.8,2.3508]
[1720691589155,0.15454719,3144.1,3143.8,2.3508]
[1720691589365,0.15454719,3144.0,3143.8,2.3508]
[1720691589570,0.15454719,3143.9,3143.8,2.58588]
[1720691589737,1.66561851,3144.1,3143.8,2.58588]
[1720691589738,0.15454719,3144.0,3143.8,2.3508]
[1720691589934,0.15454719,3143.9,3143.4,6.9375]
[1720691590152,1.66561851,3143.7,3143.4,6.9375]
[1720691590338,0.15454719,3143.6,3143.4,6.9375]
[1720691590657,0.15454719,3143.6,3143.5,0.69375]
[1720691591482,0.15475806,3143.6,3143.5,0.69375]
[1720691592568,1.82185216,3143.6,3143.2,2.3355]
[1720691592867,0.15475806,3143.5,3143.3,0.06361923]
[1720691593269,0.15475806,3143.4,3143.3,0.06361923]
[1720691593476,0.15475806,3143.6,3143.3,0.06361923]
[1720691593675,0.15475806,3143.5,3143.3,0.06361923]
[1720691593973,1.6670941,3143.7,3143.4,0.23991192]
[1720691594185,0.15473256,3143.6,3143.4,0.23991192]
[1720691594880,0.15472179,3143.5,3143.4,0.23991192]
[1720691595370,0.15472179,3143.6,3143.4,0.23991192]
[1720691595868,1.82223954,3143.6,3143.4,0.23991192]
[1720691596179,0.15472179,3143.5,3143.4,0.23991192]
[1720691596749,0.15472179,3143.5,3143.1,0.4]
[1720691596953,2.0010213,3143.4,3143.1,0.4]
[1720691597150,0.15472179,3143.5,3143.1,0.4]
[1720691597151,2.0010213,3143.2,3143.1,0.4]
[1720691597349,0.15472179,3143.2,3143.1,0.4]
[1720691598279,0.15507708,3143.2,3143.1,0.4]
[1720691598487,3.30481379,3143.9,3143.1,0.4]
[1720691598653,2.3347194,3143.4,3143.1,0.4]
[1720691598840,0.15507754,3143.3,3143.1,0.4]
[1720691599746,2.15548633,3143.3,3143.1,0.4]
[1720691599954,0.15507754,3143.2,3143.1,0.4]
[1720691600181,2.15548633,3143.2,3143.1,0.4]
[1720691600540,2.15544638,3143.2,3143.1,0.4]
[1720691601602,2.15521924,3143.2,3143.1,0.4]
[1720691601762,2.15522137,3143.2,3143.1,0.4]
[1720691601957,0.15504573,3143.2,3143.1,0.4]
[1720691603001,2.15487546,3143.2,3143.1,0.4]
[1720691603565,0.15504573,3143.2,3143.1,0.4]
[1720691604073,0.15504573,3143.3,3143.1,0.4]
[1720691604274,0.15504573,3143.2,3143.1,0.4]
[1720691604797,2.48858397,3143.2,3143.1,0.4]
[1720691605096,0.15521416,3143.2,3143.1,0.4]
[1720691605325,0.15521416,3143.3,3143.1,0.4]
[1720691605458,2.48765141,3143.2,3143.1,0.4]
[1720691607013,0.15521416,3143.2,3143.1,0.4]
[1720691607175,2.33243725,3143.4,3143.1,0.4]
[1720691607176,0.15521416,3143.3,3143.1,0.4]
[1720691607380,2.15365159,3143.2,3143.1,0.4]
[1720691607687,0.15521416,3143.2,3143.1,0.4]
[1720691607889,0.15521416,3143.2,3142.5,6.9375]
[1720691607890,0.15521416,3143.3,3142.5,6.9375]
[1720691608068,0.15521416,3143.3,3142.6,0.69375]
[1720691608069,1.66529101,3142.8,3142.6,0.69375]
[1720691608276,0.15521416,3142.7,3141.9,6.9375]
[1720691608475,0.1551254,3142.6,3142.0,0.06364015]
[1720691608713,1.66525175,3142.9,3142.0,0.06364015]
[1720691608897,0.15510873,3142.8,3142.0,0.06364015]
[1720691609209,0.15510873,3142.8,3141.8,4.2889]
[1720691609408,0.15510873,3142.8,3141.9,0.42889]
[1720691610782,0.15510873,3142.8,3142.0,0.06364023]
[1720691611375,0.15510873,3142.8,3141.9,0.42889]
[1720691611815,1.66525175,3142.9,3141.9,0.42889]
[1720691612000,0.15512061,3142.8,3141.9,0.42889]
[1720691612206,0.15512061,3142.8,3142.0,0.274779]
[1720691612824,1.81965124,3142.8,3142.0,0.274779]
[1720691613023,0.15512061,3142.7,3142.0,0.274779]
[1720691613722,0.15512061,3142.6,3142.0,0.274779]
[1720691613927,1.66453063,3142.9,3142.0,0.274779]
[1720691614100,0.15514746,3142.8,3142.0,0.274779]
[1720691615298,1.66390246,3142.9,3142.0,0.274779]
[1720691615496,0.1551448,3142.8,3142.0,0.274779]
[1720691616507,0.1551448,3142.8,3142.7,0.2]
[1720691617986,1.66390246,3143.2,3142.7,0.46297]
[1720691618187,0.15501221,3143.1,3142.7,0.46297]
[1720691618536,1.66390246,3143.5,3142.8,0.06362818]
[1720691618683,2.357,3144.2,3142.8,0.06362818]
[1720691619000,1.66339584,3143.5,3142.8,0.06362818]
[1720691619186,0.1549116,3143.4,3142.8,0.06362818]
[1720691619612,0.1549116,3143.3,3142.7,0.46297]
[1720691619820,1.66339584,3143.5,3142.7,0.46297]
[1720691620026,0.15490002,3143.4,3142.8,0.289267]
[1720691620624,0.15490002,3143.4,3142.8,0.35289178]
[1720691620997,1.66339584,3143.6,3142.8,0.3528918]
[1720691621201,0.15489728,3143.5,3142.8,0.3528918]
[1720691621433,1.66339584,3143.8,3142.8,0.3528918]
[1720691621723,0.154806,3143.7,3142.8,0.3528918]
[1720691622101,2.3782,3144.6,3142.8,0.3528918]
[1720691622411,2.3782,3144.6,3142.8,0.289267]
[1720691622412,1.66346274,3143.8,3142.8,0.289267]
[1720691622617,1.81827761,3143.7,3142.8,0.289267]
[1720691622936,0.15481487,3143.6,3142.8,0.289267]
[1720691623728,1.81827761,3143.6,3142.8,0.289267]
[1720691623933,1.99615529,3143.9,3142.8,0.289267]
[1720691623934,1.81827761,3143.5,3142.8,0.289267]
[1720691624113,0.15481487,3143.4,3142.8,0.289267]
[1720691624429,0.15481487,3143.4,3142.7,0.4]
[1720691624430,1.66346274,3143.3,3142.7,0.4]
[1720691624638,0.15481487,3143.2,3142.7,0.4]
[1720691624805,0.15481487,3143.2,3142.7,0.6]
[1720691625508,0.15499417,3143.1,3142.7,0.6]
[1720691625713,0.15499424,3143.0,3142.7,0.90297]
[1720691625923,0.15499424,3142.9,3142.7,0.90297]
[1720691626116,3.32953428,3143.2,3142.7,0.90297]
[1720691626319,0.15499137,3143.1,3142.7,0.90297]
[1720691629007,0.15492675,3143.0,3142.7,0.90297]
[1720691629207,1.66476709,3143.2,3142.8,0.333267]
[1720691629415,0.1549337,3143.1,3142.8,0.333267]
[1720691631821,0.1549337,3143.1,3142.8,0.39689493]
[1720691632400,0.15487875,3143.0,3142.8,0.39689493]
[1720691632599,1.66476709,3143.2,3142.8,0.39689493]
[1720691632836,0.15485392,3143.1,3142.8,0.333267]
[1720691634569,1.82128744,3143.1,3142.8,0.333267]
[1720691634839,0.15485392,3143.0,3142.8,0.333267]
[1720691635736,1.66643352,3143.1,3142.8,0.333267]
[1720691635737,0.15492592,3142.9,3142.8,0.333267]
[1720691635941,0.15492592,3143.0,3142.8,0.333267]
[1720691638745,1.66840382,3143.5,3142.9,2.282]
[1720691638975,3.30481379,3144.7,3143.0,0.33151008]
[1720691638976,0.15476032,3143.4,3143.0,0.33151008]
[1720691639139,0.15469781,3143.3,3143.0,2.30151008]
[1720691639332,1.66859944,3143.7,3143.0,2.30151008]
[1720691639686,0.15470441,3143.6,3143.1,0.45835101]
[1720691639964,0.15470441,3143.6,3143.2,2.34561695]
[1720691640269,0.15470441,3143.5,3143.2,2.282]
[1720691640438,1.66859944,3143.9,3143.2,2.282]
[1720691640639,1.82320239,3143.8,3143.3,0.2740351]
[1720691640845,0.15460295,3143.7,3143.5,2.282]
[1720691641044,1.66859944,3144.0,3143.5,2.282]
[1720691641272,0.15454037,3143.9,3143.5,2.34560978]
[1720691641443,0.15454037,3143.8,3143.5,2.34560978]
[1720691641635,0.15453426,3143.7,3143.6,0.43156098]
[1720691642862,0.15453426,3143.7,3143.6,0.49516929]
[1720691643732,0.15453426,3143.7,3143.6,0.43156098]
[1720691644445,0.309147,3143.7,3143.5,2.282]
[1720691644770,0.15453426,3143.7,3143.5,2.282]
[1720691646763,0.15453426,3143.7,3143.6,0.06361112]
[1720691648251,0.15453426,3143.7,3143.5,2.282]
[1720691648578,0.15453426,3143.7,3143.6,0.43156061]
[1720691649071,0.15453426,3143.7,3143.6,0.49516358]
[1720691651883,1.6634916,3144.9,3143.7,2.4136]
[1720691652182,1.6634916,3145.4,3144.5,2.4136]
[1720691652479,0.15423455,3145.3,3144.5,2.4136]
[1720691652642,0.10412851,3145.2,3144.5,2.4136]
[1720691652843,1.6634916,3145.4,3144.5,2.4136]
[1720691653049,0.10412811,3145.3,3144.5,2.85196]
[1720691653345,1.6634916,3145.5,3144.6,0.06358913]
[1720691653549,0.10412841,3145.4,3144.5,2.91554965]
[1720691654262,1.6634916,3145.6,3144.5,2.91554965]
[1720691654457,0.10412537,3145.5,3144.6,0.48855496]
[1720691655000,1.66146472,3145.5,3144.4,1.97]
[1720691655141,0.10413017,3145.4,3144.4,1.97]
[1720691655347,0.10413027,3145.3,3144.4,1.97]
[1720691655571,1.66107746,3145.6,3144.4,1.97]
[1720691655759,0.10412988,3145.5,3144.4,1.97]
[1720691655972,0.10412988,3145.5,3144.5,0.197]
[1720691656169,0.10412988,3145.5,3144.1,2.4003]
[1720691656170,2.3699,3145.4,3144.1,2.4003]
[1720691656367,0.10412988,3145.3,3144.1,2.4003]
[1720691657601,2.3699,3145.4,3144.1,2.4638972]
[1720691657746,0.10413272,3145.3,3144.1,2.4003]
[1720691657954,0.10413272,3145.3,3144.2,0.43703]
[1720691658271,2.77299775,3145.4,3144.2,0.43703]
[1720691658574,0.10413697,3145.3,3144.2,0.43703]
[1720691659085,0.10413697,3145.3,3144.3,0.06359511]
[1720691659295,0.10413697,3145.3,3145.2,0.2]
[1720691659475,0.39185044,3145.3,3145.2,0.2]
[1720691659810,0.10413022,3145.3,3145.2,0.2]
[1720691660462,1.66075419,3145.7,3145.2,0.2]
[1720691660657,0.10412902,3145.6,3145.2,0.2]
[1720691661764,2.3112,3145.9,3145.2,0.2]
[1720691661959,1.66057846,3145.7,3145.2,0.2]
[1720691662185,0.10412992,3145.6,3145.2,0.2]
[1720691662549,1.76470838,3145.6,3145.2,0.2]
[1720691662748,0.10412992,3145.5,3145.2,0.2]
[1720691663488,0.10412567,3145.4,3145.2,0.2]
[1720691663652,1.66057846,3145.8,3145.2,0.2]
[1720691663987,0.50130318,3145.7,3145.2,0.4]
[1720691664187,0.10412533,3145.6,3145.2,0.4]
[1720691664969,0.10412533,3145.5,3145.2,0.4]
[1720691665184,2.3112,3145.9,3145.2,0.4]
[1720691665369,0.10412436,3145.8,3145.2,0.4]
[1720691665859,1.76465416,3145.8,3145.2,0.4]
[1720691666065,0.10412436,3145.7,3145.2,0.4]
[1720691666891,1.76465416,3145.7,3145.2,0.4]
[1720691667191,1.76465416,3145.6,3145.2,0.4]
[1720691667386,0.10412436,3145.5,3145.2,0.4]
[1720691667564,0.28058978,3145.5,3145.2,0.6]
[1720691667765,0.10412436,3145.4,3145.2,0.6]
[1720691668987,0.10412436,3145.3,3145.2,0.6]
[1720691669159,0.10412436,3145.5,3145.2,0.6]
[1720691669492,0.10412436,3145.4,3145.2,0.6]
[1720691669793,0.10412436,3145.3,3145.2,0.6]
[1720691671083,0.10412436,3145.4,3145.2,0.6]
[1720691671255,0.10412436,3145.3,3145.2,0.6]
[1720691671455,0.10412436,3145.4,3145.2,0.6]
[1720691671696,1.94117471,3145.4,3145.2,0.8]
[1720691671879,0.10412436,3145.3,3145.2,0.8]
[1720691672204,0.10413825,3145.3,3145.2,0.8]
[1720691672764,4.25980456,3145.3,3145.2,0.8]
[1720691672989,2.59863825,3145.3,3145.2,0.8]
[1720691673195,4.12836683,3145.3,3145.2,0.8]
[1720691675302,4.12838666,3145.3,3145.2,0.8]
[1720691675487,6.12322017,3145.3,3145.2,0.8]
[1720691676504,4.12838666,3145.3,3145.2,0.8]
[1720691677502,6.45569243,3145.3,3145.2,0.8]
[1720691677863,4.12838666,3145.3,3145.2,0.8]
[1720691678763,4.12855576,3145.3,3145.2,0.8]
[1720691678993,6.88092377,3145.3,3145.2,0.8]
[1720691679199,4.12855576,3145.3,3145.2,0.8]
[1720691682194,4.12859385,3145.3,3145.2,0.8]
[1720691683061,1.63409385,3145.3,3145.2,0.8]
[1720691683262,1.15724302,3145.3,3145.2,0.8]
[1720691683759,3.49089495,3145.3,3145.2,0.8]
[1720691684697,1.15724302,3145.3,3145.2,0.8]
[1720691684898,1.05308217,3145.3,3145.2,0.8]
[1720691685299,1.44439333,3145.3,3145.2,0.8]
[1720691685509,1.5483644,3145.3,3145.2,0.8]
[1720691686802,1.15705324,3145.3,3145.2,0.8]
[1720691687122,3.91584637,3145.3,3145.2,0.8]
[1720691687518,1.15705324,3145.3,3145.2,0.8]
[1720691689010,1.15710289,3145.3,3145.2,0.8]
[1720691689300,0.10415108,3145.3,3145.2,0.8]
[1720691689473,1.60329456,3145.3,3145.2,0.8]
[1720691690083,4.90810835,3145.3,3145.2,0.8]
[1720691690294,3.92229456,3145.3,3145.2,0.8]
[1720691690506,3.92229456,3145.3,3143.8,6.9375]
[1720691690507,2.319,3145.1,3143.8,6.9375]
[1720691690708,2.0025857,3143.9,3143.6,0.2]
[1720691690922,1.15710289,3143.8,3143.6,0.2]
[1720691691125,1.66878942,3143.7,3143.6,0.2]
[1720691691423,1.7729405,3143.7,3143.6,0.2]
[1720691691719,1.7728344,3143.7,3143.6,0.44589]
[1720691692283,1.77302618,3143.7,3143.6,0.44589]
[1720691692523,0.10416938,3143.7,3143.6,0.44589]
[1720691692688,1.6688568,3144.2,3143.6,2.5236]
[1720691692888,0.10415075,3144.1,3143.6,2.5236]
[1720691693085,1.77300755,3144.1,3143.6,2.5236]
[1720691693391,0.10415075,3144.0,3143.6,2.5236]
[1720691694727,0.10415075,3143.9,3143.6,2.5236]